[Event "Early-Titled-Tuesday-Blitz-April-23-2024"]
[Site "Chess.com"]
[Date "2024.04.23"]
[Round "5"]
[White "Firouzja2003"]
[Black "klimkoj"]
[Result "1/2-1/2"]
[WhiteElo "3062"]
[BlackElo "2922"]
[TimeControl "180+1"]
[EndTime "8:58:05 PDT"]
[Termination "Game drawn - insufficient material"]

1. e4 {[%clk 0:03:00.9]} 1... c5 {[%clk 0:02:59.4]} 2. Nf3 {[%clk 0:03:01.3]}
2... d6 {[%clk 0:02:59.9]} 3. d4 {[%clk 0:03:01.4]} 3... cxd4 {[%clk 0:03:00.8]}
4. Nxd4 {[%clk 0:03:02]} 4... Nf6 {[%clk 0:03:01.5]} 5. Nc3 {[%clk 0:03:02.3]}
5... a6 {[%clk 0:03:02.1]} 6. Bg5 {[%clk 0:03:00.9]} 6... Nbd7 {[%clk
0:03:01.2]} 7. Qd2 {[%clk 0:03:01.2]} 7... e6 {[%clk 0:02:52.1]} 8. f3 {[%clk
0:03:00.7]} 8... Qc7 {[%clk 0:02:51.1]} 9. O-O-O {[%clk 0:03:00.8]} 9... b5
{[%clk 0:02:51.2]} 10. a3 {[%clk 0:02:58.2]} 10... Bb7 {[%clk 0:02:51.2]} 11.
Kb1 {[%clk 0:02:58.4]} 11... Be7 {[%clk 0:02:50.9]} 12. h4 {[%clk 0:02:58.3]}
12... Rc8 {[%clk 0:02:47.7]} 13. g4 {[%clk 0:02:48]} 13... h6 {[%clk 0:02:25.8]}
14. Be3 {[%clk 0:02:47.2]} 14... d5 {[%clk 0:02:23.7]} 15. exd5 {[%clk
0:02:38.5]} 15... Nxd5 {[%clk 0:02:24.6]} 16. Nxd5 {[%clk 0:02:38.4]} 16... Bxd5
{[%clk 0:02:23.6]} 17. Be2 {[%clk 0:02:19.5]} 17... Ne5 {[%clk 0:02:14.5]} 18.
Bf4 {[%clk 0:02:08.2]} 18... Nc4 {[%clk 0:02:05.4]} 19. Bxc4 {[%clk 0:01:13.5]}
19... Qxc4 {[%clk 0:02:06.3]} 20. b3 {[%clk 0:01:14.1]} 20... Qc3 {[%clk
0:01:34.5]} 21. Rhe1 {[%clk 0:01:14.2]} 21... Qxd2 {[%clk 0:01:27.8]} 22. Rxd2
{[%clk 0:01:14.3]} 22... Bxh4 {[%clk 0:01:27.6]} 23. Re3 {[%clk 0:01:07.9]}
23... O-O {[%clk 0:01:26.5]} 24. Nf5 {[%clk 0:01:01.7]} 24... exf5 {[%clk
0:01:10.8]} 25. Rxd5 {[%clk 0:01:01.8]} 25... fxg4 {[%clk 0:01:09.9]} 26. fxg4
{[%clk 0:01:02.7]} 26... Rfe8 {[%clk 0:01:09.8]} 27. Kc1 {[%clk 0:00:53.9]}
27... Rxe3 {[%clk 0:01:00.3]} 28. Bxe3 {[%clk 0:00:54.8]} 28... Be7 {[%clk
0:01:00.8]} 29. a4 {[%clk 0:00:35.4]} 29... bxa4 {[%clk 0:00:57.1]} 30. bxa4
{[%clk 0:00:36.3]} 30... Rc4 {[%clk 0:00:54.8]} 31. Ra5 {[%clk 0:00:36.4]} 31...
Rc6 {[%clk 0:00:49.8]} 32. Bd2 {[%clk 0:00:33.3]} 32... Bc5 {[%clk 0:00:48.3]}
33. Kb2 {[%clk 0:00:23.8]} 33... f6 {[%clk 0:00:34.6]} 34. Kb3 {[%clk
0:00:23.6]} 34... Kf7 {[%clk 0:00:34.1]} 35. c4 {[%clk 0:00:16.2]} 35... Ke6
{[%clk 0:00:24.6]} 36. Bb4 {[%clk 0:00:16.3]} 36... Bxb4 {[%clk 0:00:23.8]} 37.
Kxb4 {[%clk 0:00:17.2]} 37... g6 {[%clk 0:00:23.9]} 38. Kc3 {[%clk 0:00:15.6]}
38... f5 {[%clk 0:00:23.8]} 39. gxf5+ {[%clk 0:00:15.7]} 39... gxf5 {[%clk
0:00:24.7]} 40. Kd4 {[%clk 0:00:16.3]} 40... Rd6+ {[%clk 0:00:24.8]} 41. Ke3
{[%clk 0:00:16.6]} 41... Rc6 {[%clk 0:00:25.3]} 42. Kd4 {[%clk 0:00:16.8]} 42...
Rd6+ {[%clk 0:00:21.9]} 43. Ke3 {[%clk 0:00:16.4]} 43... Kf6 {[%clk 0:00:20.6]}
44. Rc5 {[%clk 0:00:13.2]} 44... Re6+ {[%clk 0:00:19.4]} 45. Kf3 {[%clk
0:00:04.9]} 45... h5 {[%clk 0:00:19.3]} 46. Rc8 {[%clk 0:00:03.7]} 46... Ke5
{[%clk 0:00:19.5]} 47. Rc5+ {[%clk 0:00:03.8]} 47... Kd4 {[%clk 0:00:17.6]} 48.
Rxf5 {[%clk 0:00:04.3]} 48... Kxc4 {[%clk 0:00:18.3]} 49. Rxh5 {[%clk
0:00:04.2]} 49... Kb4 {[%clk 0:00:18.4]} 50. a5 {[%clk 0:00:04.8]} 50... Rc6
{[%clk 0:00:17.2]} 51. Ke3 {[%clk 0:00:05]} 51... Rc5 {[%clk 0:00:17.7]} 52.
Rxc5 {[%clk 0:00:04.7]} 52... Kxc5 {[%clk 0:00:18.6]} 53. Kd3 {[%clk 0:00:05.2]}
53... Kb5 {[%clk 0:00:19.5]} 54. Kc2 {[%clk 0:00:05.7]} 54... Kxa5 {[%clk
0:00:20.4]} 55. Kb2 {[%clk 0:00:06.5]} 55... Kb6 {[%clk 0:00:21.3]} 56. Ka2
{[%clk 0:00:07.4]} 56... a5 {[%clk 0:00:22.2]} 57. Kb2 {[%clk 0:00:08.3]} 57...
a4 {[%clk 0:00:23.1]} 58. Ka2 {[%clk 0:00:09.2]} 58... a3 {[%clk 0:00:24]} 59.
Kxa3 {[%clk 0:00:09.7]} 1/2-1/2

[Event "Early-Titled-Tuesday-Blitz-April-23-2024"]
[Site "Chess.com"]
[Date "2024.04.23"]
[Round "5"]
[White "Anton_Demchenko"]
[Black "Thunderbolt135"]
[Result "1-0"]
[WhiteElo "2981"]
[BlackElo "2674"]
[TimeControl "180+1"]
[EndTime "8:58:05 PDT"]
[Termination "Anton_Demchenko won by checkmate"]

1. e4 {[%clk 0:02:54.4]} 1... c5 {[%clk 0:02:56.9]} 2. Nf3 {[%clk 0:02:54]} 2...
d6 {[%clk 0:02:54.5]} 3. d4 {[%clk 0:02:54.5]} 3... cxd4 {[%clk 0:02:55.4]} 4.
Qxd4 {[%clk 0:02:55]} 4... a6 {[%clk 0:02:52.3]} 5. Be2 {[%clk 0:02:48.6]} 5...
Nc6 {[%clk 0:02:49.1]} 6. Qe3 {[%clk 0:02:49.1]} 6... Nf6 {[%clk 0:02:48.6]} 7.
O-O {[%clk 0:02:48.8]} 7... Bg4 {[%clk 0:02:48.2]} 8. Qb3 {[%clk 0:02:36.9]}
8... Bxf3 {[%clk 0:02:37.2]} 9. Bxf3 {[%clk 0:02:33.7]} 9... Qc8 {[%clk
0:02:34.2]} 10. Be3 {[%clk 0:02:21.8]} 10... g6 {[%clk 0:02:23.5]} 11. Nc3
{[%clk 0:02:15]} 11... Bg7 {[%clk 0:02:23.8]} 12. e5 {[%clk 0:01:56.2]} 12...
dxe5 {[%clk 0:02:18.5]} 13. Na4 {[%clk 0:01:56.8]} 13... Rb8 {[%clk 0:02:01]}
14. Nb6 {[%clk 0:01:22.5]} 14... Qc7 {[%clk 0:02:01]} 15. Nd5 {[%clk 0:01:20.9]}
15... Nxd5 {[%clk 0:01:52.1]} 16. Bxd5 {[%clk 0:01:21.8]} 16... O-O {[%clk
0:01:04.7]} 17. Bb6 {[%clk 0:01:18.6]} 17... Qd6 {[%clk 0:00:33]} 18. c3 {[%clk
0:01:19.2]} 18... e6 {[%clk 0:00:21.4]} 19. Bf3 {[%clk 0:01:08]} 19... f5 {[%clk
0:00:07.9]} 20. Rad1 {[%clk 0:01:01.8]} 20... Qe7 {[%clk 0:00:08.3]} 21. Qc4
{[%clk 0:00:41.4]} 21... Rfc8 {[%clk 0:00:08.2]} 22. Qa4 {[%clk 0:00:29.6]}
22... e4 {[%clk 0:00:06.9]} 23. Be2 {[%clk 0:00:30.4]} 23... Ne5 {[%clk
0:00:07.3]} 24. Be3 {[%clk 0:00:15.9]} 24... h5 {[%clk 0:00:06.9]} 25. h3 {[%clk
0:00:15.6]} 25... Nc6 {[%clk 0:00:06.3]} 26. Rd2 {[%clk 0:00:09]} 26... Kh7
{[%clk 0:00:06.8]} 27. Rfd1 {[%clk 0:00:08.3]} 27... Rd8 {[%clk 0:00:07.4]} 28.
Bb6 {[%clk 0:00:07.6]} 28... Rxd2 {[%clk 0:00:07.5]} 29. Rxd2 {[%clk 0:00:08.5]}
29... Be5 {[%clk 0:00:08]} 30. Qc4 {[%clk 0:00:05.8]} 30... Re8 {[%clk 0:00:08]}
31. Bc5 {[%clk 0:00:04.5]} 31... Qg5 {[%clk 0:00:07.7]} 32. Rd1 {[%clk
0:00:03.3]} 32... Qf4 {[%clk 0:00:07]} 33. g3 {[%clk 0:00:03]} 33... Qg5 {[%clk
0:00:07.6]} 34. Rd7+ {[%clk 0:00:02.8]} 34... Kh6 {[%clk 0:00:07.8]} 35. h4
{[%clk 0:00:02.7]} 35... Qf6 {[%clk 0:00:07.2]} 36. Rxb7 {[%clk 0:00:02.7]}
36... f4 {[%clk 0:00:05]} 37. Qxe4 {[%clk 0:00:03.4]} 37... Ne7 {[%clk
0:00:01.9]} 38. Bd3 {[%clk 0:00:03.3]} 38... Nf5 {[%clk 0:00:01.5]} 39. gxf4
{[%clk 0:00:03.5]} 39... Bb8 {[%clk 0:00:02.2]} 40. Be3 {[%clk 0:00:03.4]} 40...
Qxh4 {[%clk 0:00:02.5]} 41. Qg2 {[%clk 0:00:03.7]} 41... Bd6 {[%clk 0:00:02.8]}
42. Qg5+ {[%clk 0:00:03.8]} 42... Qxg5+ {[%clk 0:00:02.9]} 43. fxg5# {[%clk
0:00:04.7]} 1-0

[Event "Early-Titled-Tuesday-Blitz-April-23-2024"]
[Site "Chess.com"]
[Date "2024.04.23"]
[Round "5"]
[White "Naruna_Chan"]
[Black "DumbKing75"]
[Result "0-1"]
[WhiteElo "2387"]
[BlackElo "2647"]
[TimeControl "180+1"]
[EndTime "8:58:06 PDT"]
[Termination "DumbKing75 won on time"]

1. e4 {[%clk 0:03:00.9]} 1... c5 {[%clk 0:02:58.8]} 2. c3 {[%clk 0:02:59.7]}
2... d5 {[%clk 0:02:52.4]} 3. exd5 {[%clk 0:02:59.7]} 3... Qxd5 {[%clk
0:02:53.3]} 4. d4 {[%clk 0:02:59.8]} 4... g6 {[%clk 0:02:49.9]} 5. Nf3 {[%clk
0:02:53]} 5... Bg7 {[%clk 0:02:41.8]} 6. Na3 {[%clk 0:02:48.2]} 6... cxd4 {[%clk
0:02:36.4]} 7. Bc4 {[%clk 0:02:45.7]} 7... Qe4+ {[%clk 0:02:28.3]} 8. Be3 {[%clk
0:02:45.4]} 8... Nh6 {[%clk 0:02:28.6]} 9. cxd4 {[%clk 0:02:26.2]} 9... O-O
{[%clk 0:02:26.8]} 10. O-O {[%clk 0:02:22.4]} 10... Bg4 {[%clk 0:01:45.6]} 11.
Be2 {[%clk 0:01:55.1]} 11... Nf5 {[%clk 0:01:30.3]} 12. Ng5 {[%clk 0:01:49.7]}
12... Bxe2 {[%clk 0:01:29.6]} 13. Nxe4 {[%clk 0:01:43.5]} 13... Bxd1 {[%clk
0:01:29.6]} 14. Rfxd1 {[%clk 0:01:43.1]} 14... Nc6 {[%clk 0:01:23]} 15. d5
{[%clk 0:01:24.2]} 15... Nxe3 {[%clk 0:01:12.5]} 16. fxe3 {[%clk 0:01:23.8]}
16... Ne5 {[%clk 0:01:12.7]} 17. h3 {[%clk 0:01:03.1]} 17... Bh6 {[%clk
0:00:48.8]} 18. Kf2 {[%clk 0:01:01.1]} 18... Rac8 {[%clk 0:00:47.8]} 19. Rd2
{[%clk 0:00:56.3]} 19... f5 {[%clk 0:00:42.5]} 20. Nc3 {[%clk 0:00:53.3]} 20...
f4 {[%clk 0:00:41.1]} 21. e4 {[%clk 0:00:52.8]} 21... f3 {[%clk 0:00:40.8]} 22.
Rdd1 {[%clk 0:00:41.1]} 22... fxg2+ {[%clk 0:00:14.5]} 23. Kxg2 {[%clk
0:00:41.2]} 23... a6 {[%clk 0:00:13.5]} 24. Nc2 {[%clk 0:00:34.2]} 24... Nc4
{[%clk 0:00:11.1]} 25. Rab1 {[%clk 0:00:23.9]} 25... Nxb2 {[%clk 0:00:07.8]} 26.
Rxb2 {[%clk 0:00:18.6]} 26... Rxc3 {[%clk 0:00:08.4]} 27. Nd4 {[%clk 0:00:18.5]}
27... b5 {[%clk 0:00:06.2]} 28. Nc6 {[%clk 0:00:14.5]} 28... Bg5 {[%clk
0:00:04.7]} 29. Nb4 {[%clk 0:00:11]} 29... Bh4 {[%clk 0:00:04.9]} 30. Nxa6
{[%clk 0:00:09.7]} 30... Rg3+ {[%clk 0:00:05.1]} 31. Kh2 {[%clk 0:00:09.2]}
31... Rff3 {[%clk 0:00:05.9]} 32. Rxb5 {[%clk 0:00:06.7]} 32... Rf2+ {[%clk
0:00:06.4]} 33. Kh1 {[%clk 0:00:06.1]} 33... Rxh3+ {[%clk 0:00:06.9]} 34. Kg1
{[%clk 0:00:06.4]} 34... Rhh2 {[%clk 0:00:07.2]} 35. Rb8+ {[%clk 0:00:05.6]}
35... Kg7 {[%clk 0:00:07.1]} 36. Rb3 {[%clk 0:00:04.7]} 36... Rfg2+ {[%clk
0:00:07.3]} 37. Kf1 {[%clk 0:00:04.7]} 37... Bf2 {[%clk 0:00:07.2]} 38. Rf3
{[%clk 0:00:04.2]} 38... Rg1+ {[%clk 0:00:07.6]} 39. Ke2 {[%clk 0:00:04.6]}
39... Bb6+ {[%clk 0:00:08]} 40. Kd3 {[%clk 0:00:02.3]} 40... Rxd1+ {[%clk
0:00:08.3]} 41. Kc4 {[%clk 0:00:02.4]} 41... Rc2+ {[%clk 0:00:08.5]} 42. Kb5
{[%clk 0:00:02.5]} 42... Rb2+ {[%clk 0:00:08.4]} 43. Ka4 {[%clk 0:00:01.5]}
43... Rxa2+ {[%clk 0:00:08.6]} 44. Kb5 {[%clk 0:00:01.4]} 44... Rb2+ {[%clk
0:00:08.7]} 0-1

[Event "Early-Titled-Tuesday-Blitz-April-23-2024"]
[Site "Chess.com"]
[Date "2024.04.23"]
[Round "5"]
[White "LeRoidesChampions"]
[Black "LionelMessiFCB"]
[Result "1-0"]
[WhiteElo "2621"]
[BlackElo "2462"]
[TimeControl "180+1"]
[EndTime "8:58:06 PDT"]
[Termination "LeRoidesChampions won by resignation"]

1. Nf3 {[%clk 0:02:58.8]} 1... Nf6 {[%clk 0:02:53.9]} 2. g3 {[%clk 0:02:58.8]}
2... g6 {[%clk 0:02:54.1]} 3. b3 {[%clk 0:02:58.9]} 3... Bg7 {[%clk 0:02:55]} 4.
Bb2 {[%clk 0:02:59.5]} 4... O-O {[%clk 0:02:54.9]} 5. Bg2 {[%clk 0:02:59.8]}
5... b6 {[%clk 0:02:50.7]} 6. O-O {[%clk 0:02:59.7]} 6... Bb7 {[%clk 0:02:50.8]}
7. c4 {[%clk 0:03:00.3]} 7... c5 {[%clk 0:02:48.3]} 8. Nc3 {[%clk 0:03:00.9]}
8... Nc6 {[%clk 0:02:47.6]} 9. d4 {[%clk 0:03:01.3]} 9... Nxd4 {[%clk
0:02:45.6]} 10. Nxd4 {[%clk 0:03:02]} 10... Bxg2 {[%clk 0:02:45.8]} 11. Kxg2
{[%clk 0:03:01.6]} 11... cxd4 {[%clk 0:02:46.4]} 12. Qxd4 {[%clk 0:03:02.5]}
12... d6 {[%clk 0:02:33.2]} 13. e4 {[%clk 0:03:00.8]} 13... Nd7 {[%clk
0:02:33.3]} 14. Qd2 {[%clk 0:02:57.5]} 14... Nc5 {[%clk 0:02:32.6]} 15. Rfe1
{[%clk 0:02:47.1]} 15... a5 {[%clk 0:02:18.9]} 16. Rad1 {[%clk 0:02:37.5]} 16...
a4 {[%clk 0:02:07.7]} 17. b4 {[%clk 0:02:36.5]} 17... a3 {[%clk 0:02:02.6]} 18.
Ba1 {[%clk 0:02:36.4]} 18... Ne6 {[%clk 0:02:01.8]} 19. Nd5 {[%clk 0:02:33]}
19... Rc8 {[%clk 0:01:51.8]} 20. Bxg7 {[%clk 0:02:31]} 20... Nxg7 {[%clk
0:01:52.7]} 21. Qd4 {[%clk 0:02:18.8]} 21... Ne6 {[%clk 0:01:48.2]} 22. Qxb6
{[%clk 0:02:18.2]} 22... Rxc4 {[%clk 0:01:46.1]} 23. Qxd8 {[%clk 0:02:17.4]}
23... Rxd8 {[%clk 0:01:47]} 24. Nxe7+ {[%clk 0:02:18.3]} 24... Kf8 {[%clk
0:01:46.9]} 25. Nd5 {[%clk 0:02:13.1]} 25... Rc2 {[%clk 0:01:46.2]} 26. Re3
{[%clk 0:01:32.7]} 26... Rxa2 {[%clk 0:01:44]} 27. Rdd3 {[%clk 0:01:29.8]} 27...
Ra8 {[%clk 0:01:37.8]} 28. Nb6 {[%clk 0:01:28.5]} 28... Ra6 {[%clk 0:01:26.2]}
29. Nc4 {[%clk 0:01:27.9]} 29... Ra4 {[%clk 0:01:21.8]} 30. Rxa3 {[%clk
0:01:24.1]} 30... R2xa3 {[%clk 0:01:20.8]} 31. Rxa3 {[%clk 0:01:25]} 31... Rxb4
{[%clk 0:01:21.4]} 32. Nxd6 {[%clk 0:01:25.5]} 32... Ke7 {[%clk 0:01:12.5]} 33.
e5 {[%clk 0:01:21.7]} 33... Nd8 {[%clk 0:01:12.1]} 34. f4 {[%clk 0:01:17.5]}
34... f6 {[%clk 0:01:11.7]} 35. Ra7+ {[%clk 0:00:55.7]} 35... Ke6 {[%clk
0:01:10.7]} 36. Ra8 {[%clk 0:00:56.2]} 36... Rb2+ {[%clk 0:01:05]} 37. Kh3
{[%clk 0:00:45.2]} 37... Nc6 {[%clk 0:00:58.7]} 38. Re8+ {[%clk 0:00:45.1]}
38... Ne7 {[%clk 0:00:58.6]} 39. Nc8 {[%clk 0:00:42.3]} 39... Rb7 {[%clk
0:00:56.2]} 40. Rxe7+ {[%clk 0:00:35.5]} 40... Rxe7 {[%clk 0:00:57.1]} 41. Nxe7
{[%clk 0:00:36.4]} 41... Kxe7 {[%clk 0:00:57.3]} 42. Kg4 {[%clk 0:00:23.6]}
42... Ke6 {[%clk 0:00:57.3]} 43. exf6 {[%clk 0:00:20.7]} 43... Kxf6 {[%clk
0:00:58.2]} 44. Kf3 {[%clk 0:00:20.3]} 44... Kf5 {[%clk 0:00:53.6]} 45. g4+
{[%clk 0:00:20.3]} 45... Kf6 {[%clk 0:00:53.9]} 46. Ke4 {[%clk 0:00:17.1]} 46...
Ke6 {[%clk 0:00:50.9]} 47. h3 {[%clk 0:00:14.6]} 47... h6 {[%clk 0:00:49.7]} 48.
h4 {[%clk 0:00:12.8]} 48... Kd6 {[%clk 0:00:44.4]} 49. f5 {[%clk 0:00:08.9]}
49... h5 {[%clk 0:00:36.6]} 50. fxg6 {[%clk 0:00:08.1]} 1-0

[Event "Early-Titled-Tuesday-Blitz-April-23-2024"]
[Site "Chess.com"]
[Date "2024.04.23"]
[Round "5"]
[White "Ariadna_Atreides"]
[Black "mr65"]
[Result "1-0"]
[WhiteElo "2234"]
[BlackElo "1956"]
[TimeControl "180+1"]
[EndTime "8:58:06 PDT"]
[Termination "Ariadna_Atreides won by resignation"]

1. d4 {[%clk 0:03:00.9]} 1... Nf6 {[%clk 0:02:59.5]} 2. Nf3 {[%clk 0:03:01.3]}
2... e6 {[%clk 0:02:59.4]} 3. e3 {[%clk 0:03:01.6]} 3... c5 {[%clk 0:02:58.8]}
4. Bd3 {[%clk 0:03:01.7]} 4... d5 {[%clk 0:02:58.1]} 5. b3 {[%clk 0:03:01.4]}
5... Be7 {[%clk 0:02:57.4]} 6. O-O {[%clk 0:03:00.7]} 6... O-O {[%clk 0:02:57]}
7. Bb2 {[%clk 0:03:00.5]} 7... Nc6 {[%clk 0:02:56.8]} 8. Nbd2 {[%clk 0:02:58.7]}
8... b6 {[%clk 0:02:55.7]} 9. dxc5 {[%clk 0:02:54.6]} 9... bxc5 {[%clk
0:02:51.9]} 10. e4 {[%clk 0:02:53.4]} 10... Bb7 {[%clk 0:02:36.4]} 11. e5 {[%clk
0:02:43.5]} 11... Nd7 {[%clk 0:02:35.6]} 12. Re1 {[%clk 0:02:42.6]} 12... a5
{[%clk 0:02:27.7]} 13. a4 {[%clk 0:02:14.4]} 13... h6 {[%clk 0:02:25.1]} 14. Qe2
{[%clk 0:02:04]} 14... Rc8 {[%clk 0:02:20.8]} 15. c4 {[%clk 0:01:52.1]} 15... d4
{[%clk 0:02:07.3]} 16. Qe4 {[%clk 0:01:44.7]} 16... g6 {[%clk 0:02:03.3]} 17.
Qf4 {[%clk 0:01:39]} 17... Nb4 {[%clk 0:01:58.1]} 18. Bb1 {[%clk 0:01:19.4]}
18... Bg5 {[%clk 0:01:55.9]} 19. Nxg5 {[%clk 0:01:17.2]} 19... Qxg5 {[%clk
0:01:54.8]} 20. Qxg5 {[%clk 0:01:13.7]} 20... hxg5 {[%clk 0:01:54.2]} 21. Ne4
{[%clk 0:01:07.4]} 21... Bxe4 {[%clk 0:01:51.8]} 22. Rxe4 {[%clk 0:01:04.4]}
22... Kg7 {[%clk 0:01:50.6]} 23. Ba3 {[%clk 0:00:58.3]} 23... Rh8 {[%clk
0:01:46.2]} 24. Bxb4 {[%clk 0:00:56.2]} 24... axb4 {[%clk 0:01:44.8]} 25. Bd3
{[%clk 0:00:48.9]} 25... Nb8 {[%clk 0:01:39.7]} 26. Rae1 {[%clk 0:00:47.1]}
26... Nc6 {[%clk 0:01:38.6]} 27. Rg4 {[%clk 0:00:46.3]} 27... Na5 {[%clk
0:01:37.2]} 28. Bc2 {[%clk 0:00:44.7]} 28... Rh5 {[%clk 0:01:33.8]} 29. Rg3
{[%clk 0:00:38.1]} 29... Rd8 {[%clk 0:01:29.9]} 30. h3 {[%clk 0:00:31.5]} 30...
Rhh8 {[%clk 0:01:24.4]} 31. Rd1 {[%clk 0:00:26.4]} 31... Rd7 {[%clk 0:01:16.4]}
32. Rxg5 {[%clk 0:00:25.4]} 32... Rhd8 {[%clk 0:01:15.9]} 33. Rd3 {[%clk
0:00:25.3]} 33... Kh6 {[%clk 0:01:11.9]} 34. f4 {[%clk 0:00:25.3]} 34... Kg7
{[%clk 0:01:08.6]} 35. h4 {[%clk 0:00:24.5]} 35... Rh8 {[%clk 0:01:06.2]} 36. g3
{[%clk 0:00:24.4]} 36... Rh5 {[%clk 0:01:01]} 37. Rxh5 {[%clk 0:00:23.7]} 37...
gxh5 {[%clk 0:01:00.9]} 38. Bd1 {[%clk 0:00:23.4]} 38... Kh6 {[%clk 0:01:00.1]}
39. Kf2 {[%clk 0:00:21.3]} 39... Kg6 {[%clk 0:00:58.4]} 40. g4 {[%clk
0:00:20.5]} 40... hxg4 {[%clk 0:00:57.3]} 41. Bxg4 {[%clk 0:00:21.4]} 41... Rd8
{[%clk 0:00:52.4]} 42. h5+ {[%clk 0:00:21.1]} 42... Kh6 {[%clk 0:00:51.2]} 43.
Kf3 {[%clk 0:00:21.6]} 43... Rg8 {[%clk 0:00:48]} 44. Kg3 {[%clk 0:00:18.6]}
44... Rf8 {[%clk 0:00:35.2]} 45. Kh4 {[%clk 0:00:17.3]} 45... f5 {[%clk
0:00:31.9]} 46. exf6 {[%clk 0:00:10.2]} 46... Rxf6 {[%clk 0:00:31.1]} 47. Rf3
{[%clk 0:00:09]} 47... e5 {[%clk 0:00:23.9]} 48. fxe5 {[%clk 0:00:05.6]} 48...
Rxf3 {[%clk 0:00:23.2]} 49. Bxf3 {[%clk 0:00:06.5]} 49... Nxb3 {[%clk
0:00:23.1]} 50. e6 {[%clk 0:00:06.1]} 50... Kg7 {[%clk 0:00:21.6]} 51. h6+
{[%clk 0:00:05.4]} 51... Kxh6 {[%clk 0:00:18.3]} 52. e7 {[%clk 0:00:05.7]} 1-0

[Event "Early-Titled-Tuesday-Blitz-April-23-2024"]
[Site "Chess.com"]
[Date "2024.04.23"]
[Round "5"]
[White "Nikita_Klepikov"]
[Black "RojonR"]
[Result "1/2-1/2"]
[WhiteElo "2368"]
[BlackElo "2557"]
[TimeControl "180+1"]
[EndTime "8:58:10 PDT"]
[Termination "Game drawn by repetition"]

1. e4 {[%clk 0:03:00.9]} 1... c5 {[%clk 0:02:59.9]} 2. Nf3 {[%clk 0:03:00.5]}
2... Nc6 {[%clk 0:02:59.6]} 3. d4 {[%clk 0:03:00.5]} 3... cxd4 {[%clk
0:03:00.5]} 4. Nxd4 {[%clk 0:03:00.8]} 4... Qc7 {[%clk 0:03:01]} 5. Nc3 {[%clk
0:02:59.9]} 5... e6 {[%clk 0:03:01.5]} 6. a3 {[%clk 0:02:50.2]} 6... a6 {[%clk
0:03:01.3]} 7. Be3 {[%clk 0:02:49.6]} 7... Nf6 {[%clk 0:03:01.8]} 8. Be2 {[%clk
0:02:46.4]} 8... Be7 {[%clk 0:02:59.5]} 9. f4 {[%clk 0:02:43.5]} 9... d6 {[%clk
0:02:59.2]} 10. g4 {[%clk 0:02:31.1]} 10... O-O {[%clk 0:02:55.1]} 11. g5 {[%clk
0:02:30.3]} 11... Nd7 {[%clk 0:02:55.1]} 12. Nxc6 {[%clk 0:02:12.8]} 12... bxc6
{[%clk 0:02:50.8]} 13. O-O {[%clk 0:02:03.3]} 13... Rb8 {[%clk 0:02:46.2]} 14.
b3 {[%clk 0:01:53.9]} 14... f5 {[%clk 0:02:25.5]} 15. gxf6 {[%clk 0:01:17]}
15... Bxf6 {[%clk 0:02:21.8]} 16. Bd4 {[%clk 0:01:15.3]} 16... e5 {[%clk
0:02:20.4]} 17. Bc4+ {[%clk 0:00:51.9]} 17... Kh8 {[%clk 0:01:54.9]} 18. fxe5
{[%clk 0:00:50.6]} 18... Nxe5 {[%clk 0:01:54.4]} 19. Bxe5 {[%clk 0:00:48.5]}
19... dxe5 {[%clk 0:01:53.4]} 20. Qe2 {[%clk 0:00:34.7]} 20... Bh3 {[%clk
0:01:44.9]} 21. Rf2 {[%clk 0:00:31.4]} 21... Bh4 {[%clk 0:01:39]} 22. Rxf8+
{[%clk 0:00:22.6]} 22... Rxf8 {[%clk 0:01:39.9]} 23. Qh5 {[%clk 0:00:19]} 23...
Qb6+ {[%clk 0:01:38.1]} 24. Kh1 {[%clk 0:00:16.9]} 24... Qf2 {[%clk 0:01:37.4]}
25. Rg1 {[%clk 0:00:07]} 25... Qf3+ {[%clk 0:00:23.7]} 26. Qxf3 {[%clk
0:00:06.6]} 26... Rxf3 {[%clk 0:00:24.6]} 27. Ne2 {[%clk 0:00:06.5]} 27... Rf2
{[%clk 0:00:22.1]} 28. Ng3 {[%clk 0:00:04.8]} 28... Bg4 {[%clk 0:00:20.5]} 29.
Rf1 {[%clk 0:00:02.9]} 29... Rxf1+ {[%clk 0:00:08]} 30. Bxf1 {[%clk 0:00:03.6]}
30... Bd1 {[%clk 0:00:04.7]} 31. Bd3 {[%clk 0:00:03.7]} 31... Bxg3 {[%clk
0:00:03.9]} 32. hxg3 {[%clk 0:00:03.9]} 32... a5 {[%clk 0:00:04.3]} 33. b4
{[%clk 0:00:03.9]} 33... axb4 {[%clk 0:00:04.2]} 34. axb4 {[%clk 0:00:04.8]}
34... g5 {[%clk 0:00:04.6]} 35. c3 {[%clk 0:00:05.4]} 35... h5 {[%clk
0:00:04.2]} 36. Kg2 {[%clk 0:00:06.1]} 36... Kg7 {[%clk 0:00:03.8]} 37. Ba6
{[%clk 0:00:06.7]} 37... Bc2 {[%clk 0:00:03.2]} 38. Kf3 {[%clk 0:00:04.5]} 38...
Bd1+ {[%clk 0:00:03.1]} 39. Ke3 {[%clk 0:00:04.4]} 39... h4 {[%clk 0:00:02.3]}
40. Bb7 {[%clk 0:00:04.9]} 40... h3 {[%clk 0:00:01.9]} 41. Kf2 {[%clk
0:00:04.3]} 41... Ba4 {[%clk 0:00:01.6]} 42. Kg1 {[%clk 0:00:04.2]} 42... g4
{[%clk 0:00:02.2]} 43. Kh2 {[%clk 0:00:04.9]} 43... Kg6 {[%clk 0:00:02.7]} 44.
Bc8 {[%clk 0:00:05.5]} 44... Kg5 {[%clk 0:00:03.4]} 45. Bf5 {[%clk 0:00:06.1]}
45... Bb5 {[%clk 0:00:03.8]} 46. Bd7 {[%clk 0:00:06.2]} 46... Ba4 {[%clk
0:00:04]} 47. Bf5 {[%clk 0:00:06.7]} 47... Kh5 {[%clk 0:00:04.4]} 48. Bd7 {[%clk
0:00:07.2]} 48... Kg5 {[%clk 0:00:05]} 49. Bf5 {[%clk 0:00:07.6]} 1/2-1/2